[Event "Titled Tuesday Blitz July 13 2021"]
[White "Solon, Nathan"]
[Black "Prydun, Andriy"]
[WhiteFideId "2017229"]
[BlackFideId "14145898"]
[WhiteElo "2642"]
[BlackElo "2024"]
[Result "1-0"]
[Round "02"]
[TimeControl "180+1"]
[Date "2021.07.13"]
[WhiteClock "0:00:48"]
[BlackClock "0:00:06"]

1. d4 {[%clk 0:03:00]}  d5 {[%clk 0:02:58]} 2. c4 {[%clk 0:03:00]}  c6 {[%clk 0:02:57]} 3. Nf3 {[%clk 0:03:01]}  Nf6 {[%clk 0:02:56]} 4. g3 {[%clk 0:03:01]}  e6 {[%clk 0:02:56]} 5. Bg2 {[%clk 0:03:00]}  Nbd7 {[%clk 0:02:56]} 6. Nfd2 {[%clk 0:02:59]}  b6 {[%clk 0:02:54]} 7. O-O {[%clk 0:02:58]}  Bb7 {[%clk 0:02:54]} 8. Nc3 {[%clk 0:02:58]}  Be7 {[%clk 0:02:53]} 9. e4 {[%clk 0:02:58]}  O-O {[%clk 0:02:53]} 10. e5 {[%clk 0:02:50]}  Ne8 {[%clk 0:02:52]} 11. cxd5 {[%clk 0:02:49]}  cxd5 {[%clk 0:02:51]} 12. f4 {[%clk 0:02:49]}  Nc7 {[%clk 0:02:46]} 13. f5 {[%clk 0:02:47]}  exf5 {[%clk 0:02:45]} 14. Rxf5 {[%clk 0:02:45]}  b5 {[%clk 0:02:44]} 15. Rf1 {[%clk 0:02:37]}  b4 {[%clk 0:02:44]} 16. Ne2 {[%clk 0:02:37]}  Ne6 {[%clk 0:02:43]} 17. Nf3 {[%clk 0:02:36]}  Nb6 {[%clk 0:02:39]} 18. Nf4 {[%clk 0:02:34]}  Bc8 {[%clk 0:02:28]} 19. Nh5 {[%clk 0:01:55]}  Qc7 {[%clk 0:01:32]} 20. b3 {[%clk 0:01:49]}  Ba6 {[%clk 0:01:01]} 21. Rf2 {[%clk 0:01:49]}  Rac8 {[%clk 0:00:56]} 22. Bf1 {[%clk 0:01:31]}  Bxf1 {[%clk 0:00:53]} 23. Qxf1 {[%clk 0:01:31]}  Qc3 {[%clk 0:00:37]} 24. Bd2 {[%clk 0:01:26]}  Qc6 {[%clk 0:00:27]} 25. Qh3 {[%clk 0:01:22]}  Nc7 {[%clk 0:00:25]} 26. Raf1 {[%clk 0:01:17]}  Qe6 {[%clk 0:00:24]} 27. g4 {[%clk 0:01:07]}  Nb5 {[%clk 0:00:22]} 28. Ng5 {[%clk 0:00:58]}  Bxg5 {[%clk 0:00:19]} 29. Bxg5 {[%clk 0:00:59]}  Nxd4 {[%clk 0:00:17]} 30. Bf6 {[%clk 0:00:59]}  Rc3 {[%clk 0:00:17]} 31. Qh4 {[%clk 0:00:56]}  Nd7 {[%clk 0:00:13]} 32. Bxg7 {[%clk 0:00:54]}  Nxe5 {[%clk 0:00:07]} 33. Nf6+ {[%clk 0:00:49]}  Kxg7 {[%clk 0:00:06]} 34. Qxh7# {[%clk 0:00:48]} 1-0


[Site "https://www.chess.com"]

[Event "Titled Tuesday Blitz July 13 2021"]
[White "Spyropoulos, Nikolaos"]
[Black "Rosenberg, Evan S"]
[WhiteFideId "4298977"]
[BlackFideId "2019299"]
[WhiteElo "2159"]
[BlackElo "2378"]
[Result "1-0"]
[Round "02"]
[TimeControl "180+1"]
[Date "2021.07.13"]
[WhiteClock "0:00:42"]
[BlackClock "0:00:01"]

1. d4 {[%clk 0:02:49]}  Nf6 {[%clk 0:02:59]} 2. Nf3 {[%clk 0:02:34]}  e6 {[%clk 0:02:59]} 3. Bg5 {[%clk 0:02:32]}  h6 {[%clk 0:02:55]} 4. Bh4 {[%clk 0:02:30]}  c5 {[%clk 0:02:52]} 5. e3 {[%clk 0:02:29]}  Nc6 {[%clk 0:02:43]} 6. Nbd2 {[%clk 0:02:27]}  a6 {[%clk 0:02:36]} 7. c3 {[%clk 0:02:27]}  d5 {[%clk 0:02:34]} 8. Bd3 {[%clk 0:02:23]}  cxd4 {[%clk 0:02:16]} 9. exd4 {[%clk 0:02:22]}  Be7 {[%clk 0:02:12]} 10. O-O {[%clk 0:02:22]}  O-O {[%clk 0:02:10]} 11. Re1 {[%clk 0:02:17]}  Bd7 {[%clk 0:01:55]} 12. Rc1 {[%clk 0:02:13]}  Rc8 {[%clk 0:01:53]} 13. Bb1 {[%clk 0:02:08]}  Be8 {[%clk 0:01:37]} 14. Ne5 {[%clk 0:01:36]}  Nxe5 {[%clk 0:01:28]} 15. dxe5 {[%clk 0:01:36]}  Nd7 {[%clk 0:01:05]} 16. Bg3 {[%clk 0:01:36]}  Qb6 {[%clk 0:00:50]} 17. Nb3 {[%clk 0:01:31]}  Bg5 {[%clk 0:00:39]} 18. Qd3 {[%clk 0:01:26]}  g6 {[%clk 0:00:36]} 19. Rcd1 {[%clk 0:01:15]}  Nc5 {[%clk 0:00:31]} 20. Nxc5 {[%clk 0:01:15]}  Rxc5 {[%clk 0:00:30]} 21. h4 {[%clk 0:01:15]}  Be7 {[%clk 0:00:11]} 22. Bf4 {[%clk 0:01:16]}  Kg7 {[%clk 0:00:08]} 23. Qd2 {[%clk 0:01:03]}  Rh8 {[%clk 0:00:07]} 24. Be3 {[%clk 0:01:02]}  Qc7 {[%clk 0:00:06]} 25. Bxc5 {[%clk 0:01:01]}  Qxc5 {[%clk 0:00:07]} 26. h5 {[%clk 0:00:57]}  Bg5 {[%clk 0:00:05]} 27. Qc2 {[%clk 0:00:56]}  gxh5 {[%clk 0:00:04]} 28. Rd4 {[%clk 0:00:54]}  h4 {[%clk 0:00:03]} 29. Kh2 {[%clk 0:00:48]}  Qc7 {[%clk 0:00:01]} 30. f4 {[%clk 0:00:42]} 1-0


[Site "https://www.chess.com"]

[Event "Titled Tuesday Blitz July 13 2021"]
[White "Srihari L R"]
[Black "Tomb, Maroun"]
[WhiteFideId "46617116"]
[BlackFideId "5300398"]
[WhiteElo "2121"]
[BlackElo "2518"]
[Result "1/2-1/2"]
[Round "02"]
[TimeControl "180+1"]
[Date "2021.07.13"]
[WhiteClock "0:00:03"]
[BlackClock "0:00:05"]

1. Nf3 {[%clk 0:03:00]}  Nf6 {[%clk 0:02:58]} 2. c4 {[%clk 0:03:00]}  d6 {[%clk 0:02:58]} 3. d4 {[%clk 0:02:59]}  Nbd7 {[%clk 0:02:58]} 4. g3 {[%clk 0:02:58]}  e5 {[%clk 0:02:58]} 5. Bg2 {[%clk 0:02:58]}  c6 {[%clk 0:02:58]} 6. O-O {[%clk 0:02:58]}  Be7 {[%clk 0:02:58]} 7. Nc3 {[%clk 0:02:57]}  O-O {[%clk 0:02:58]} 8. b3 {[%clk 0:02:57]}  a6 {[%clk 0:02:54]} 9. Bb2 {[%clk 0:02:56]}  e4 {[%clk 0:02:54]} 10. Nh4 {[%clk 0:02:48]}  d5 {[%clk 0:02:53]} 11. cxd5 {[%clk 0:02:47]}  cxd5 {[%clk 0:02:53]} 12. Nf5 {[%clk 0:02:46]}  Bb4 {[%clk 0:02:48]} 13. a3 {[%clk 0:02:44]}  Ba5 {[%clk 0:02:46]} 14. Rc1 {[%clk 0:02:40]}  Nb8 {[%clk 0:02:41]} 15. Ne3 {[%clk 0:02:35]}  Nc6 {[%clk 0:02:34]} 16. b4 {[%clk 0:02:29]}  Bc7 {[%clk 0:02:22]} 17. Na4 {[%clk 0:02:20]}  Qe8 {[%clk 0:02:10]} 18. Nc5 {[%clk 0:02:17]}  b6 {[%clk 0:02:02]} 19. Na4 {[%clk 0:02:13]}  Bd7 {[%clk 0:02:02]} 20. Nc3 {[%clk 0:02:12]}  Be6 {[%clk 0:01:56]} 21. Qd2 {[%clk 0:02:02]}  Rc8 {[%clk 0:01:54]} 22. f3 {[%clk 0:02:00]}  exf3 {[%clk 0:01:42]} 23. exf3 {[%clk 0:01:59]}  Qd7 {[%clk 0:01:37]} 24. f4 {[%clk 0:01:57]}  Bh3 {[%clk 0:01:21]} 25. Ncxd5 {[%clk 0:01:53]}  Nxd5 {[%clk 0:01:20]} 26. Nxd5 {[%clk 0:01:52]}  Bxg2 {[%clk 0:01:20]} 27. Qxg2 {[%clk 0:01:51]}  Ne7 {[%clk 0:01:12]} 28. Nxe7+ {[%clk 0:01:28]}  Qxe7 {[%clk 0:01:13]} 29. d5 {[%clk 0:01:28]}  Qd7 {[%clk 0:01:03]} 30. Be5 {[%clk 0:01:20]}  Bd6 {[%clk 0:00:51]} 31. Rc6 {[%clk 0:00:50]}  Bxe5 {[%clk 0:00:44]} 32. fxe5 {[%clk 0:00:49]}  Rxc6 {[%clk 0:00:44]} 33. dxc6 {[%clk 0:00:49]}  Qd4+ {[%clk 0:00:44]} 34. Qf2 {[%clk 0:00:45]}  Qxe5 {[%clk 0:00:42]} 35. Qxb6 {[%clk 0:00:43]}  h5 {[%clk 0:00:39]} 36. c7 {[%clk 0:00:42]}  Rc8 {[%clk 0:00:38]} 37. Rc1 {[%clk 0:00:28]}  h4 {[%clk 0:00:32]} 38. Qc5 {[%clk 0:00:15]}  Qb2 {[%clk 0:00:26]} 39. Qc3 {[%clk 0:00:11]}  Qe2 {[%clk 0:00:27]} 40. gxh4 {[%clk 0:00:10]}  Qg4+ {[%clk 0:00:27]} 41. Qg3 {[%clk 0:00:06]}  Qd4+ {[%clk 0:00:27]} 42. Kh1 {[%clk 0:00:06]}  Qe4+ {[%clk 0:00:25]} 43. Qg2 {[%clk 0:00:06]}  Qxh4 {[%clk 0:00:22]} 44. Qd5 {[%clk 0:00:04]}  Qf4 {[%clk 0:00:18]} 45. Qd8+ {[%clk 0:00:04]}  Kh7 {[%clk 0:00:18]} 46. Qxc8 {[%clk 0:00:02]}  Qxc1+ {[%clk 0:00:18]} 47. Kg2 {[%clk 0:00:03]}  Qd2+ {[%clk 0:00:18]} 48. Kf3 {[%clk 0:00:03]}  Qd3+ {[%clk 0:00:17]} 49. Kf2 {[%clk 0:00:03]}  Qd2+ {[%clk 0:00:17]} 50. Kg3 {[%clk 0:00:03]}  Qd3+ {[%clk 0:00:14]} 51. Kh4 {[%clk 0:00:02]}  Qc4+ {[%clk 0:00:13]} 52. Kh3 {[%clk 0:00:02]}  Qd3+ {[%clk 0:00:12]} 53. Kg2 {[%clk 0:00:02]}  Qe2+ {[%clk 0:00:12]} 54. Kg3 {[%clk 0:00:02]}  Qd3+ {[%clk 0:00:11]} 55. Kf4 {[%clk 0:00:03]}  Qd4+ {[%clk 0:00:10]} 56. Kf5 {[%clk 0:00:02]}  Qd5+ {[%clk 0:00:06]} 57. Kf4 {[%clk 0:00:02]}  Qd4+ {[%clk 0:00:06]} 58. Kf3 {[%clk 0:00:03]}  Qd3+ {[%clk 0:00:05]} 59. Kg2 {[%clk 0:00:03]}  Qe2+ {[%clk 0:00:05]} 60. Kg3 {[%clk 0:00:03]}  Qd3+ {[%clk 0:00:05]} 1/2-1/2


[Site "https://www.chess.com"]

[Event "Titled Tuesday Blitz July 13 2021"]
[White "Stocek, Jiri"]
[Black "Pridorozhni, Aleksei"]
[WhiteFideId "304760"]
[BlackFideId "4127870"]
[WhiteElo "2409"]
[BlackElo "2565"]
[Result "0-1"]
[Round "02"]
[TimeControl "180+1"]
[Date "2021.07.13"]
[WhiteClock "0:00:05"]
[BlackClock "0:01:03"]

1. d3 {[%clk 0:02:59]}  d5 {[%clk 0:02:58]} 2. Nd2 {[%clk 0:02:57]}  c5 {[%clk 0:02:58]} 3. e4 {[%clk 0:02:56]}  e6 {[%clk 0:02:58]} 4. Be2 {[%clk 0:02:53]}  Nc6 {[%clk 0:02:58]} 5. Ngf3 {[%clk 0:02:51]}  Nge7 {[%clk 0:02:57]} 6. O-O {[%clk 0:02:51]}  g6 {[%clk 0:02:57]} 7. Re1 {[%clk 0:02:50]}  Bg7 {[%clk 0:02:57]} 8. Bf1 {[%clk 0:02:49]}  O-O {[%clk 0:02:56]} 9. c3 {[%clk 0:02:45]}  d4 {[%clk 0:02:54]} 10. cxd4 {[%clk 0:02:37]}  cxd4 {[%clk 0:02:53]} 11. e5 {[%clk 0:02:33]}  Qc7 {[%clk 0:02:38]} 12. Nc4 {[%clk 0:02:19]}  b5 {[%clk 0:02:29]} 13. Na3 {[%clk 0:02:19]}  a6 {[%clk 0:02:25]} 14. Bf4 {[%clk 0:02:18]}  Bb7 {[%clk 0:02:21]} 15. Rc1 {[%clk 0:02:16]}  Qd7 {[%clk 0:02:16]} 16. h4 {[%clk 0:02:06]}  Rac8 {[%clk 0:02:09]} 17. h5 {[%clk 0:02:03]}  Nb4 {[%clk 0:02:07]} 18. h6 {[%clk 0:01:36]}  Bh8 {[%clk 0:02:06]} 19. Qb3 {[%clk 0:01:33]}  Bxf3 {[%clk 0:02:02]} 20. Qxb4 {[%clk 0:01:27]}  Nd5 {[%clk 0:02:00]} 21. Qxd4 {[%clk 0:01:26]}  Bh5 {[%clk 0:01:52]} 22. Nc4 {[%clk 0:01:03]}  bxc4 {[%clk 0:01:47]} 23. dxc4 {[%clk 0:01:02]}  Nf6 {[%clk 0:01:47]} 24. Qb6 {[%clk 0:00:52]}  Rc6 {[%clk 0:01:44]} 25. Qb4 {[%clk 0:00:46]}  Qc7 {[%clk 0:01:38]} 26. f3 {[%clk 0:00:20]}  Nd7 {[%clk 0:01:31]} 27. g4 {[%clk 0:00:18]}  g5 {[%clk 0:01:31]} 28. Bxg5 {[%clk 0:00:17]}  Bg6 {[%clk 0:01:30]} 29. f4 {[%clk 0:00:16]}  f6 {[%clk 0:01:24]} 30. exf6 {[%clk 0:00:15]}  Bxf6 {[%clk 0:01:25]} 31. Bxf6 {[%clk 0:00:13]}  Nxf6 {[%clk 0:01:23]} 32. Bg2 {[%clk 0:00:13]}  Rb6 {[%clk 0:01:22]} 33. Qa5 {[%clk 0:00:12]}  Rc6 {[%clk 0:01:04]} 34. Qxc7 {[%clk 0:00:11]}  Rxc7 {[%clk 0:01:05]} 35. g5 {[%clk 0:00:11]}  Nh5 {[%clk 0:01:03]} 36. Rxe6 {[%clk 0:00:10]}  Nxf4 {[%clk 0:01:03]} 37. Rxa6 {[%clk 0:00:09]}  Nxg2 {[%clk 0:01:04]} 38. Kxg2 {[%clk 0:00:09]}  Rc5 {[%clk 0:01:04]} 39. Rc3 {[%clk 0:00:07]}  Rxg5+ {[%clk 0:01:04]} 40. Rg3 {[%clk 0:00:06]}  Rh5 {[%clk 0:01:04]} 41. c5 {[%clk 0:00:05]}  Rxc5 {[%clk 0:01:03]} 0-1


[Site "https://www.chess.com"]

[Event "Titled Tuesday Blitz July 13 2021"]
[White "Tharushi, T H D Niklesha"]
[Black "Hebden, Mark L"]
[WhiteFideId "9918264"]
[BlackFideId "400084"]
[WhiteElo "1595"]
[BlackElo "2457"]
[Result "0-1"]
[Round "02"]
[TimeControl "180+1"]
[Date "2021.07.13"]
[WhiteClock "0:00:11"]
[BlackClock "0:01:00"]

1. e4 {[%clk 0:03:00]}  e5 {[%clk 0:02:59]} 2. Nf3 {[%clk 0:03:00]}  Nc6 {[%clk 0:02:59]} 3. Bc4 {[%clk 0:02:58]}  Nf6 {[%clk 0:02:58]} 4. d3 {[%clk 0:02:56]}  Be7 {[%clk 0:02:58]} 5. c3 {[%clk 0:02:48]}  O-O {[%clk 0:02:57]} 6. O-O {[%clk 0:02:41]}  d5 {[%clk 0:02:56]} 7. exd5 {[%clk 0:02:37]}  Nxd5 {[%clk 0:02:56]} 8. Bb3 {[%clk 0:02:21]}  Bg4 {[%clk 0:02:52]} 9. h3 {[%clk 0:02:21]}  Bh5 {[%clk 0:02:52]} 10. Nbd2 {[%clk 0:02:18]}  Kh8 {[%clk 0:02:50]} 11. Ne4 {[%clk 0:02:14]}  f5 {[%clk 0:02:46]} 12. Neg5 {[%clk 0:01:49]}  Bxg5 {[%clk 0:02:23]} 13. Bxg5 {[%clk 0:01:47]}  Qd6 {[%clk 0:02:20]} 14. Re1 {[%clk 0:01:01]}  Rae8 {[%clk 0:02:18]} 15. a3 {[%clk 0:00:53]}  f4 {[%clk 0:02:12]} 16. c4 {[%clk 0:00:27]}  Nb6 {[%clk 0:02:05]} 17. Rc1 {[%clk 0:00:27]}  Nd7 {[%clk 0:02:03]} 18. Qc2 {[%clk 0:00:25]}  Nc5 {[%clk 0:01:54]} 19. d4 {[%clk 0:00:21]}  Nxb3 {[%clk 0:01:29]} 20. Qxb3 {[%clk 0:00:21]}  e4 {[%clk 0:01:21]} 21. Nd2 {[%clk 0:00:16]}  Qg6 {[%clk 0:01:17]} 22. Bh4 {[%clk 0:00:15]}  Nxd4 {[%clk 0:01:15]} 23. Qc3 {[%clk 0:00:13]}  c5 {[%clk 0:01:05]} 24. b4 {[%clk 0:00:13]}  b6 {[%clk 0:01:05]} 25. bxc5 {[%clk 0:00:13]}  bxc5 {[%clk 0:01:06]} 26. Nb3 {[%clk 0:00:13]}  Nf3+ {[%clk 0:01:02]} 27. Kh1 {[%clk 0:00:11]}  Nxh4 {[%clk 0:01:02]} 28. Nxc5 {[%clk 0:00:11]}  Qxg2# {[%clk 0:01:00]} 0-1


[Site "https://www.chess.com"]

[Event "Titled Tuesday Blitz July 13 2021"]
[White "Tikhonov, Viacheslav"]
[Black "Bilych, Olexiy"]
[WhiteFideId "44196407"]
[BlackFideId "14156504"]
[WhiteElo "1773"]
[BlackElo "2246"]
[Result "0-1"]
[Round "02"]
[TimeControl "180+1"]
[Date "2021.07.13"]
[WhiteClock "0:00:04"]
[BlackClock "0:00:23"]

1. e4 {[%clk 0:03:00]}  Nf6 {[%clk 0:03:00]} 2. e5 {[%clk 0:03:00]}  Nd5 {[%clk 0:03:00]} 3. d4 {[%clk 0:03:00]}  d6 {[%clk 0:03:00]} 4. exd6 {[%clk 0:03:01]}  exd6 {[%clk 0:03:00]} 5. c4 {[%clk 0:02:59]}  Nf6 {[%clk 0:03:00]} 6. Nc3 {[%clk 0:02:55]}  Be7 {[%clk 0:03:01]} 7. g3 {[%clk 0:02:51]}  O-O {[%clk 0:03:01]} 8. Bg2 {[%clk 0:02:51]}  Nc6 {[%clk 0:02:58]} 9. Nge2 {[%clk 0:02:50]}  Bg4 {[%clk 0:02:57]} 10. O-O {[%clk 0:02:47]}  Re8 {[%clk 0:02:54]} 11. h3 {[%clk 0:02:47]}  Bh5 {[%clk 0:02:53]} 12. Be3 {[%clk 0:02:41]}  Bf8 {[%clk 0:02:51]} 13. Qd2 {[%clk 0:02:40]}  Bg6 {[%clk 0:02:50]} 14. Nf4 {[%clk 0:02:38]}  Ne4 {[%clk 0:02:47]} 15. Nxe4 {[%clk 0:02:35]}  Bxe4 {[%clk 0:02:48]} 16. Rfe1 {[%clk 0:02:26]}  Bxg2 {[%clk 0:02:38]} 17. Kxg2 {[%clk 0:02:27]}  g6 {[%clk 0:02:38]} 18. b4 {[%clk 0:02:26]}  a6 {[%clk 0:02:27]} 19. a4 {[%clk 0:02:23]}  a5 {[%clk 0:02:26]} 20. b5 {[%clk 0:02:16]}  Nb4 {[%clk 0:02:26]} 21. Nd5 {[%clk 0:02:00]}  Nxd5 {[%clk 0:02:19]} 22. cxd5 {[%clk 0:02:01]}  Bg7 {[%clk 0:02:14]} 23. Rac1 {[%clk 0:01:56]}  Qd7 {[%clk 0:02:01]} 24. Qd3 {[%clk 0:01:50]}  h6 {[%clk 0:01:50]} 25. Rc4 {[%clk 0:01:36]}  Re7 {[%clk 0:01:38]} 26. Rec1 {[%clk 0:01:33]}  Rae8 {[%clk 0:01:38]} 27. Rxc7 {[%clk 0:01:18]}  Qxc7 {[%clk 0:01:39]} 28. Rxc7 {[%clk 0:01:19]}  Rxc7 {[%clk 0:01:40]} 29. b6 {[%clk 0:01:20]}  Rce7 {[%clk 0:01:35]} 30. Qb5 {[%clk 0:01:19]}  Re4 {[%clk 0:01:27]} 31. Qd7 {[%clk 0:00:58]}  R4e7 {[%clk 0:01:05]} 32. Qxd6 {[%clk 0:00:57]}  Bf8 {[%clk 0:01:06]} 33. Qf6 {[%clk 0:00:41]}  Rd7 {[%clk 0:01:03]} 34. Qf3 {[%clk 0:00:33]}  Red8 {[%clk 0:01:03]} 35. d6 {[%clk 0:00:32]}  Bxd6 {[%clk 0:00:56]} 36. Bxh6 {[%clk 0:00:32]}  Bf8 {[%clk 0:00:49]} 37. Be3 {[%clk 0:00:30]}  Bg7 {[%clk 0:00:49]} 38. h4 {[%clk 0:00:29]}  Rd5 {[%clk 0:00:35]} 39. g4 {[%clk 0:00:27]}  R8d7 {[%clk 0:00:33]} 40. h5 {[%clk 0:00:25]}  gxh5 {[%clk 0:00:33]} 41. gxh5 {[%clk 0:00:26]}  Bxd4 {[%clk 0:00:34]} 42. h6 {[%clk 0:00:18]}  Bxe3 {[%clk 0:00:25]} 43. Qxe3 {[%clk 0:00:18]}  Kh7 {[%clk 0:00:22]} 44. Qf4 {[%clk 0:00:15]}  R5d6 {[%clk 0:00:20]} 45. Qf5+ {[%clk 0:00:14]}  Kxh6 {[%clk 0:00:18]} 46. Qxa5 {[%clk 0:00:15]}  Rg6+ {[%clk 0:00:17]} 47. Kf1 {[%clk 0:00:15]}  Rdd6 {[%clk 0:00:17]} 48. Qf5 {[%clk 0:00:11]}  Rxb6 {[%clk 0:00:17]} 49. Qxf7 {[%clk 0:00:10]}  Rgf6 {[%clk 0:00:17]} 50. Qd5 {[%clk 0:00:09]}  Rb2 {[%clk 0:00:15]} 51. Qd4 {[%clk 0:00:07]}  Rbb6 {[%clk 0:00:12]} 52. Qh4+ {[%clk 0:00:07]}  Kg6 {[%clk 0:00:12]} 53. Qg4+ {[%clk 0:00:08]}  Kf7 {[%clk 0:00:12]} 54. Qc4+ {[%clk 0:00:05]}  Ke7 {[%clk 0:00:12]} 55. a5 {[%clk 0:00:06]}  Ra6 {[%clk 0:00:11]} 56. Qc5+ {[%clk 0:00:06]}  Kd7 {[%clk 0:00:11]} 57. Qb5+ {[%clk 0:00:06]}  Kc7 {[%clk 0:00:12]} 58. Qc5+ {[%clk 0:00:06]}  Rfc6 {[%clk 0:00:12]} 59. Qe5+ {[%clk 0:00:06]}  Rd6 {[%clk 0:00:11]} 60. Ke2 {[%clk 0:00:05]}  Kb8 {[%clk 0:00:11]} 61. Kf1 {[%clk 0:00:04]}  Ka8 {[%clk 0:00:11]} 62. Qe8+ {[%clk 0:00:04]}  Ka7 {[%clk 0:00:11]} 63. Qe3+ {[%clk 0:00:05]}  Kb8 {[%clk 0:00:12]} 64. Qe8+ {[%clk 0:00:05]}  Kc7 {[%clk 0:00:12]} 65. Qe7+ {[%clk 0:00:05]}  Rd7 {[%clk 0:00:13]} 66. Qc5+ {[%clk 0:00:06]}  Rc6 {[%clk 0:00:14]} 67. Qe5+ {[%clk 0:00:05]}  Kc8 {[%clk 0:00:13]} 68. Qe8+ {[%clk 0:00:05]}  Rd8 {[%clk 0:00:14]} 69. Qe3 {[%clk 0:00:05]}  Rf8 {[%clk 0:00:14]} 70. Qh3+ {[%clk 0:00:04]}  Kb8 {[%clk 0:00:14]} 71. Qg3+ {[%clk 0:00:04]}  Ka8 {[%clk 0:00:14]} 72. Qe3 {[%clk 0:00:04]}  Rcf6 {[%clk 0:00:15]} 73. Qc5 {[%clk 0:00:03]}  Rxf2+ {[%clk 0:00:15]} 74. Qxf2 {[%clk 0:00:03]}  Rxf2+ {[%clk 0:00:16]} 75. Kxf2 {[%clk 0:00:04]}  Ka7 {[%clk 0:00:16]} 76. Ke3 {[%clk 0:00:03]}  Ka6 {[%clk 0:00:17]} 77. Kd2 {[%clk 0:00:02]}  Kxa5 {[%clk 0:00:18]} 78. Kc3 {[%clk 0:00:02]}  Ka4 {[%clk 0:00:18]} 79. Kc4 {[%clk 0:00:01]}  b5+ {[%clk 0:00:18]} 80. Kc3 {[%clk 0:00:02]}  Ka3 {[%clk 0:00:19]} 81. Kc2 {[%clk 0:00:02]}  b4 {[%clk 0:00:19]} 82. Kb1 {[%clk 0:00:01]}  Kb3 {[%clk 0:00:19]} 83. Ka1 {[%clk 0:00:01]}  Kc2 {[%clk 0:00:20]} 84. Ka2 {[%clk 0:00:01]}  b3+ {[%clk 0:00:21]} 85. Ka1 {[%clk 0:00:02]}  b2+ {[%clk 0:00:22]} 86. Ka2 {[%clk 0:00:03]}  b1=Q+ {[%clk 0:00:22]} 87. Ka3 {[%clk 0:00:04]}  Qb3# {[%clk 0:00:23]} 0-1


[Site "https://www.chess.com"]

[Event "Titled Tuesday Blitz July 13 2021"]
[White "Tologon tegin, Semetei"]
[Black "Gusarov, Grigory"]
[WhiteFideId "13800574"]
[BlackFideId "24102172"]
[WhiteElo "2224"]
[BlackElo "2269"]
[Result "0-1"]
[Round "02"]
[TimeControl "180+1"]
[Date "2021.07.13"]
[WhiteClock "0:00:03"]
[BlackClock "0:00:46"]

1. d4 {[%clk 0:03:00]}  g6 {[%clk 0:02:59]} 2. c4 {[%clk 0:03:01]}  Bg7 {[%clk 0:02:59]} 3. Nc3 {[%clk 0:03:01]}  c5 {[%clk 0:03:00]} 4. d5 {[%clk 0:02:59]}  d6 {[%clk 0:03:00]} 5. e4 {[%clk 0:02:57]}  Nf6 {[%clk 0:03:00]} 6. Bd3 {[%clk 0:02:57]}  O-O {[%clk 0:03:00]} 7. Nge2 {[%clk 0:02:56]}  e6 {[%clk 0:03:00]} 8. O-O {[%clk 0:02:56]}  exd5 {[%clk 0:03:01]} 9. exd5 {[%clk 0:02:57]}  a6 {[%clk 0:03:01]} 10. a4 {[%clk 0:02:54]}  Re8 {[%clk 0:02:59]} 11. h3 {[%clk 0:02:45]}  Nbd7 {[%clk 0:02:59]} 12. b3 {[%clk 0:02:38]}  Ne5 {[%clk 0:02:58]} 13. Bc2 {[%clk 0:02:37]}  Qc7 {[%clk 0:02:39]} 14. Be3 {[%clk 0:02:33]}  Nh5 {[%clk 0:02:28]} 15. Qd2 {[%clk 0:02:06]}  Bxh3 {[%clk 0:02:27]} 16. Bh6 {[%clk 0:01:41]}  Bh8 {[%clk 0:02:14]} 17. f4 {[%clk 0:01:36]}  Ng4 {[%clk 0:02:14]} 18. gxh3 {[%clk 0:01:31]}  Nxh6 {[%clk 0:02:14]} 19. f5 {[%clk 0:01:31]}  Bg7 {[%clk 0:02:05]} 20. Rae1 {[%clk 0:01:17]}  Qd8 {[%clk 0:01:48]} 21. fxg6 {[%clk 0:01:09]}  hxg6 {[%clk 0:01:48]} 22. Ne4 {[%clk 0:00:43]}  Qh4 {[%clk 0:01:44]} 23. Ng5 {[%clk 0:00:42]}  Ng3 {[%clk 0:01:34]} 24. Nxg3 {[%clk 0:00:40]}  Qxg3+ {[%clk 0:01:31]} 25. Kh1 {[%clk 0:00:33]}  Rxe1 {[%clk 0:01:23]} 26. Rxe1 {[%clk 0:00:34]}  Bc3 {[%clk 0:01:23]} 27. Re3 {[%clk 0:00:24]}  Bxd2 {[%clk 0:00:53]} 28. Rxg3 {[%clk 0:00:23]}  Bxg5 {[%clk 0:00:54]} 29. Rxg5 {[%clk 0:00:23]}  Re8 {[%clk 0:00:54]} 30. Rg2 {[%clk 0:00:18]}  Re3 {[%clk 0:00:53]} 31. Kh2 {[%clk 0:00:17]}  Kg7 {[%clk 0:00:53]} 32. Bd1 {[%clk 0:00:15]}  f5 {[%clk 0:00:52]} 33. Re2 {[%clk 0:00:15]}  Rxe2+ {[%clk 0:00:50]} 34. Bxe2 {[%clk 0:00:15]}  Kf6 {[%clk 0:00:50]} 35. Kg3 {[%clk 0:00:15]}  g5 {[%clk 0:00:51]} 36. h4 {[%clk 0:00:14]}  f4+ {[%clk 0:00:48]} 37. Kh3 {[%clk 0:00:14]}  Nf5 {[%clk 0:00:43]} 38. hxg5+ {[%clk 0:00:13]}  Kxg5 {[%clk 0:00:44]} 39. Bg4 {[%clk 0:00:08]}  a5 {[%clk 0:00:44]} 40. Bd1 {[%clk 0:00:04]}  b6 {[%clk 0:00:44]} 41. Kg2 {[%clk 0:00:04]}  Ne3+ {[%clk 0:00:45]} 42. Kf3 {[%clk 0:00:03]}  Nxd1 {[%clk 0:00:46]} 0-1


[Site "https://www.chess.com"]